bitfinex-derivatives/quotes_BTCF0:USTF0_20250918
["timestamp","ask_amount","ask_price","bid_price","bid_amount"]
[1758220161293,0.00904,117920.0,117910.0,2.33852956]
[1758220162094,0.00904,117920.0,117910.0,1.56652956]
[1758220162296,0.00904,117920.0,117910.0,2.33848956]
[1758220164197,0.00904,117920.0,117910.0,1.56652956]
[1758220164395,0.00904,117920.0,117910.0,2.33848956]
[1758220164594,0.00904,117920.0,117910.0,1.56652956]
[1758220165294,0.00904,117920.0,117910.0,2.33848956]
[1758220165598,0.00904,117920.0,117910.0,1.56652956]
[1758220165795,0.00904,117920.0,117910.0,1.77894284]
[1758220165995,0.00904,117920.0,117910.0,2.33844956]
[1758220166195,0.00904,117920.0,117910.0,1.56652956]
[1758220166404,0.55174336,117920.0,117910.0,1.2020143]
[1758220166593,0.57293336,117920.0,117910.0,0.92226094]
[1758220167197,0.29318,117920.0,117910.0,1.9739343]
[1758220167397,0.29318,117920.0,117910.0,1.2020143]
[1758220167597,0.57293336,117920.0,117910.0,1.9739343]
[1758220167795,0.29318,117920.0,117910.0,1.9739343]
[1758220167999,0.29318,117920.0,117910.0,1.2020143]
[1758220168399,0.57293336,117920.0,117910.0,0.96226094]
[1758220171205,0.85268672,117920.0,117910.0,0.96226094]
[1758220171595,0.57293336,117920.0,117910.0,0.96226094]
[1758220179310,0.32293336,117920.0,117910.0,0.96226094]
[1758220179609,0.85268672,117920.0,117910.0,0.94222]
[1758220179809,0.85268672,117920.0,117910.0,0.6]
[1758220182610,1.62452672,117920.0,117910.0,0.62277]
[1758220183700,0.85268672,117920.0,117910.0,0.62277]
[1758220183901,1.62452672,117920.0,117910.0,0.62277]
[1758220185511,1.34477336,117920.0,117910.0,0.62277]
[1758220188311,1.34477336,117920.0,117910.0,0.6]
[1758220188510,1.62452672,117920.0,117910.0,0.6]
[1758220189414,1.62452672,117920.0,117910.0,0.62277]
[1758220189715,1.62452672,117920.0,117910.0,0.6]
[1758220192111,1.59038672,117920.0,117910.0,0.6]
[1758220192317,1.62575672,117920.0,117910.0,0.6]
[1758220193114,0.03537,117890.0,117880.0,0.04228258]
[1758220193415,0.31512336,117890.0,117880.0,0.98228258]
[1758220194316,0.31812336,117890.0,117880.0,0.98228258]
[1758220195718,0.31907336,117890.0,117880.0,0.98203258]
[1758220195913,1.09087336,117890.0,117880.0,0.98203258]
[1758220196217,0.31907336,117890.0,117880.0,1.26178594]
[1758220196522,1.09087336,117890.0,117880.0,1.26178594]
[1758220197321,0.31907336,117890.0,117880.0,1.26178594]
[1758220197516,1.09087336,117890.0,117880.0,1.26178594]
[1758220199520,1.09087336,117890.0,117880.0,0.98203258]
[1758220199819,1.23085922,117890.0,117880.0,1.4017718]
[1758220200124,1.23085922,117890.0,117880.0,1.38225922]
[1758220200416,1.90059844,117890.0,117880.0,0.62]
[1758220200616,0.01309,117880.0,117850.0,0.41973922]
[1758220200816,0.87462844,117860.0,117850.0,0.90332]
[1758220201021,0.87462844,117860.0,117850.0,1.32305922]
[1758220201225,0.45488922,117860.0,117850.0,1.32305922]
[1758220202223,0.45488922,117860.0,117850.0,0.90332]
[1758220202422,0.45488922,117860.0,117850.0,1.32405922]
[1758220203922,0.45488922,117860.0,117850.0,1.32505922]
[1758220204223,0.03515,117860.0,117850.0,1.32505922]
[1758220204421,0.03515,117860.0,117850.0,1.4222173]
[1758220205025,0.03515,117860.0,117850.0,1.337414]
[1758220205324,0.03515,117860.0,117850.0,2.109294]
[1758220205727,0.03515,117860.0,117850.0,1.337414]
[1758220208929,0.45488922,117860.0,117850.0,0.91767478]
[1758220209132,0.45488922,117860.0,117850.0,1.337414]
[1758220209731,0.03515,117860.0,117850.0,1.337414]
[1758220209932,0.78511,117870.0,117850.0,1.84195652]
[1758220210132,1.22690922,117870.0,117860.0,0.86279844]
[1758220210326,1.22690922,117870.0,117860.0,1.71279844]
[1758220210327,0.03515,117870.0,117860.0,1.71279844]
[1758220210626,0.03515,117870.0,117860.0,1.79759454]
[1758220210933,0.55475,117880.0,117860.0,1.80810454]
[1758220211230,0.99654922,117880.0,117870.0,0.44305922]
[1758220211431,0.99644922,117880.0,117870.0,1.35305922]
[1758220212327,0.99744922,117880.0,117870.0,1.35305922]
[1758220212829,0.99844922,117880.0,117870.0,1.35305922]
[1758220213528,0.99744922,117880.0,117870.0,1.35305922]
[1758220213729,0.99844922,117880.0,117870.0,1.35305922]
[1758220214028,0.45688922,117880.0,117870.0,1.35305922]
[1758220216129,0.03715,117880.0,117870.0,1.35305922]
[1758220216433,1.22880922,117880.0,117870.0,1.35305922]
[1758220217533,0.01509,117880.0,117870.0,1.85758744]
[1758220217736,0.002,117880.0,117870.0,2.10758744]
[1758220218341,0.002,117880.0,117870.0,2.87946744]
[1758220220037,0.002,117880.0,117870.0,2.10758744]
[1758220220237,0.002,117880.0,117870.0,2.87946744]
[1758220221740,0.002,117880.0,117870.0,2.10758744]
[1758220221939,0.002,117880.0,117870.0,2.87946744]
[1758220224948,0.002,117880.0,117870.0,2.10758744]
[1758220225249,0.002,117880.0,117870.0,2.79463844]
[1758220225442,0.01509,117880.0,117870.0,2.37485922]
[1758220225640,0.03715,117880.0,117870.0,0.93332]
[1758220225848,0.45688922,117880.0,117870.0,1.35305922]
[1758220226461,0.45688922,117880.0,117870.0,1.25305922]
[1758220228654,1.12662844,117880.0,117870.0,0.83332]
[1758220229061,1.54636766,117880.0,117870.0,0.51332]
[1758220229260,1.54636766,117880.0,117870.0,0.03]
[1758220229461,1.12662844,117880.0,117870.0,0.03]
[1758220230062,0.28715,117880.0,117870.0,0.03]
[1758220230265,1.12662844,117880.0,117870.0,0.03]
[1758220231854,1.12662844,117880.0,117850.0,0.50454242]
[1758220232064,0.43250922,117860.0,117850.0,1.39454242]
[1758220232264,0.43250922,117860.0,117850.0,1.30973922]
[1758220233257,0.01277,117860.0,117850.0,1.30973922]
[1758220233459,0.43250922,117860.0,117850.0,1.30973922]
[1758220234065,1.12470844,117860.0,117850.0,0.59]
[1758220234462,1.12470844,117860.0,117850.0,0.591]
[1758220235166,1.12470844,117860.0,117850.0,0.59]
[1758220235665,1.12570844,117860.0,117850.0,0.59]
[1758220236662,1.12670844,117860.0,117850.0,0.59]
[1758220239463,0.87670844,117860.0,117850.0,0.59]
[1758220239865,1.64854844,117860.0,117850.0,0.59]
[1758220242164,2.31828766,117860.0,117850.0,0.59]
[1758220242366,1.54644766,117860.0,117850.0,0.59]
[1758220242567,0.01277,117830.0,117820.0,1.37415388]
[1758220242867,0.43250922,117830.0,117820.0,2.7038931]
[1758220243271,0.01277,117830.0,117820.0,2.7038931]
[1758220243575,0.43250922,117830.0,117820.0,2.7038931]
[1758220243871,0.43250922,117830.0,117820.0,2.7058931]
[1758220244268,0.01277,117830.0,117820.0,2.7078931]
[1758220244771,0.43250922,117830.0,117820.0,2.7078931]
[1758220244966,0.43250922,117830.0,117820.0,1.86841476]
[1758220245167,0.43250922,117830.0,117820.0,2.7078932]
[1758220245368,0.01287,117840.0,117820.0,2.7078932]
[1758220245669,0.01287,117840.0,117830.0,0.92429604]
[1758220245670,0.0001,117840.0,117830.0,0.92429604]
[1758220245969,0.01287,117850.0,117830.0,2.03429604]
[1758220246170,0.03533,117850.0,117840.0,0.83947844]
[1758220246372,0.03523,117850.0,117840.0,1.64947844]
[1758220246571,0.45496922,117850.0,117840.0,1.64947844]
[1758220248076,0.01277,117850.0,117840.0,1.64947844]
[1758220248276,0.01277,117850.0,117840.0,2.75612884]
[1758220248480,0.43260922,117860.0,117840.0,2.75612884]
[1758220248676,0.45506922,117860.0,117850.0,0.41973922]
[1758220248878,0.45496922,117860.0,117850.0,1.23973922]
[1758220249676,0.03523,117860.0,117850.0,1.23973922]
[1758220249883,0.03623,117860.0,117850.0,1.23973922]
[1758220250179,0.45596922,117860.0,117850.0,1.23973922]
[1758220250376,0.01377,117860.0,117850.0,1.32454242]
[1758220250578,0.01477,117860.0,117850.0,1.32454242]
[1758220251079,0.01377,117860.0,117850.0,1.32454242]
[1758220251279,0.01477,117860.0,117850.0,1.23973922]
[1758220251481,0.43450922,117860.0,117850.0,2.01157922]
[1758220253779,0.43450922,117860.0,117850.0,2.09638242]
[1758220253978,0.43450922,117860.0,117850.0,0.82]
[1758220254279,0.45696922,117860.0,117850.0,2.01153922]
[1758220255682,0.45696922,117860.0,117850.0,1.23973922]
[1758220256081,0.87670844,117860.0,117850.0,1.23973922]
[1758220256482,0.87670844,117860.0,117850.0,0.82]
[1758220257382,0.03723,117860.0,117850.0,0.82]
[1758220257577,0.87670844,117860.0,117850.0,0.82]
[1758220258283,0.87670844,117860.0,117850.0,1.23973922]
[1758220259285,0.45696922,117860.0,117850.0,1.23973922]
[1758220260383,0.45696922,117860.0,117850.0,0.82]
[1758220260585,0.45696922,117860.0,117850.0,1.23973922]
[1758220260782,0.87670844,117860.0,117850.0,1.23973922]
[1758220261889,0.31718277,117860.0,117850.0,0.82]
[1758220266291,0.03723,117860.0,117850.0,1.09995277]
[1758220266486,0.31718277,117860.0,117850.0,1.09995277]
[1758220266687,0.002,117860.0,117850.0,1.71470884]
[1758220267188,0.002,117860.0,117850.0,1.43475607]
[1758220267387,0.002,117860.0,117850.0,1.9265233]
[1758220267588,0.002,117860.0,117850.0,2.20647607]
[1758220268689,0.001,117860.0,117850.0,2.20647607]
[1758220268991,0.01287,117870.0,117850.0,2.20647607]
[1758220269289,0.03526,117870.0,117860.0,0.27995277]
[1758220269489,0.03516,117870.0,117860.0,1.16995277]
[1758220269987,0.03616,117870.0,117860.0,1.16995277]
[1758220270293,0.03716,117870.0,117860.0,1.16995277]
[1758220271289,0.03716,117870.0,117860.0,0.89]
[1758220271498,0.31711277,117870.0,117860.0,0.89]
[1758220271693,0.31611277,117870.0,117860.0,0.89]
[1758220271893,0.31711277,117870.0,117860.0,0.89]
[1758220276099,0.56711277,117870.0,117860.0,0.89]
[1758220279508,0.28716,117870.0,117860.0,0.89]
[1758220279702,0.03716,117870.0,117860.0,1.16995277]
[1758220279905,0.01477,117870.0,117860.0,1.53470154]
[1758220280201,0.002,117870.0,117860.0,1.78470154]
[1758220280398,0.01467,117870.0,117860.0,1.41995277]
[1758220280599,0.01467,117870.0,117860.0,1.224796]
[1758220280799,0.01467,117870.0,117860.0,1.50474877]
[1758220281204,0.01467,117870.0,117860.0,1.41995277]
[1758220283602,0.01467,117870.0,117860.0,1.16995277]
[1758220283806,0.31701277,117870.0,117860.0,0.89]
[1758220284003,0.59696554,117870.0,117860.0,0.95]
[1758220284203,0.56701277,117870.0,117860.0,0.95]
[1758220284403,0.84696554,117870.0,117860.0,0.95]
[1758220284603,0.56701277,117870.0,117860.0,0.95]
[1758220285506,0.84696554,117870.0,117860.0,0.95]
[1758220285906,0.56701277,117870.0,117860.0,0.95]
[1758220286206,0.84696554,117870.0,117860.0,0.95]
[1758220286910,0.56701277,117870.0,117860.0,0.95]
[1758220295410,0.59696554,117870.0,117860.0,0.95]
[1758220296314,0.31701277,117870.0,117860.0,0.95]
[1758220300423,1.01285277,117870.0,117860.0,0.95]
[1758220307429,1.29280554,117870.0,117860.0,0.95]
[1758220310528,1.01285277,117870.0,117860.0,0.95]
[1758220313928,1.29280554,117870.0,117860.0,0.95]
[1758220314929,0.59696554,117870.0,117860.0,0.95]
[1758220315434,1.08845277,117870.0,117860.0,0.95]
[1758220315634,0.59696554,117870.0,117860.0,0.95]
[1758220315834,1.36840554,117870.0,117860.0,0.95]
[1758220316037,1.08845277,117870.0,117860.0,0.95]
[1758220316536,1.36840554,117870.0,117860.0,0.95]
[1758220318440,0.03706,117870.0,117860.0,0.95]
[1758220318641,0.65629277,117870.0,117860.0,0.95]
[1758220321652,0.31701277,117870.0,117860.0,0.95]
[1758220321955,1.08845277,117870.0,117860.0,0.95]
[1758220322256,0.31701277,117870.0,117860.0,0.95]
[1758220322558,1.08845277,117870.0,117860.0,0.95]
[1758220323048,0.31701277,117870.0,117860.0,0.95]
[1758220323253,1.08845277,117870.0,117860.0,0.95]
[1758220323753,1.64834474,117870.0,117860.0,0.95]
[1758220326957,0.45698237,117870.0,117860.0,1.36992237]
[1758220327157,1.22842237,117870.0,117860.0,0.95]
[1758220328258,0.45698237,117870.0,117860.0,1.36992237]
[1758220328454,0.002,117870.0,117860.0,2.91550634]
[1758220329261,0.002,117870.0,117860.0,2.98372937]
[1758220329453,0.002,117870.0,117860.0,2.21232937]
[1758220330058,0.002,117870.0,117860.0,2.98372937]
[1758220330557,0.002,117870.0,117860.0,2.21232937]
[1758220330759,0.002,117870.0,117860.0,2.98372937]
[1758220331859,0.002,117870.0,117860.0,2.21232937]
[1758220332060,0.002,117870.0,117860.0,2.98372937]
[1758220333162,0.002,117870.0,117860.0,2.21232937]
[1758220333555,0.002,117870.0,117860.0,2.98368937]
[1758220333751,0.002,117870.0,117860.0,2.21232937]
[1758220333963,0.002,117870.0,117860.0,2.98368937]
[1758220337369,0.002,117870.0,117860.0,2.14384463]
[1758220337569,0.002,117870.0,117860.0,2.98368937]
[1758220341069,0.002,117870.0,117860.0,2.21232937]
[1758220341259,0.002,117870.0,117860.0,1.37248463]
[1758220341567,0.002,117870.0,117860.0,2.21232937]
[1758220341757,0.01542,117870.0,117860.0,2.98360997]
[1758220341962,0.43534237,117870.0,117860.0,2.3136876]
[1758220342265,0.43534237,117870.0,117860.0,1.5424076]
[1758220342468,0.43534237,117870.0,117860.0,1.457611]
[1758220343468,0.43534237,117870.0,117860.0,2.228891]
[1758220344773,0.43534237,117870.0,117860.0,1.457611]
[1758220345268,1.12704474,117870.0,117860.0,0.9694656]
[1758220350370,1.47840237,117870.0,117860.0,0.9694656]
[1758220350863,0.0372,117870.0,117860.0,1.80931034]
[1758220351172,0.45712237,117870.0,117860.0,1.89410684]
[1758220351366,0.0372,117870.0,117860.0,1.47418447]
[1758220351671,0.45712237,117870.0,117860.0,1.47418447]
[1758220351868,0.45712237,117870.0,117860.0,1.38938797]
[1758220352072,0.45712237,117870.0,117860.0,0.9694656]
[1758220354877,1.12704474,117870.0,117860.0,0.9694656]
[1758220355974,0.70712237,117870.0,117860.0,0.9694656]
[1758220356275,1.47848237,117870.0,117860.0,0.9694656]
[1758220358379,0.70712237,117870.0,117860.0,0.9694656]
[1758220358776,1.47844237,117870.0,117860.0,0.9694656]
[1758220359281,1.22844237,117870.0,117860.0,0.9694656]
[1758220365485,1.64836474,117870.0,117860.0,0.9694656]
[1758220365985,1.64836474,117870.0,117860.0,0.6294656]
[1758220366183,0.03589,117830.0,117820.0,0.07769329]
[1758220366384,0.45581237,117830.0,117820.0,1.91124237]
[1758220366576,0.45581237,117830.0,117820.0,1.50203228]
[1758220366782,0.45581237,117830.0,117820.0,0.73071228]
[1758220366983,0.45581237,117830.0,117820.0,0.72]
[1758220367186,0.45581237,117830.0,117820.0,1.13992237]
[1758220367487,0.45581237,117830.0,117820.0,1.14092237]
[1758220368284,0.78456,117840.0,117820.0,1.89566704]
[1758220368491,0.0001,117840.0,117830.0,1.69602414]
[1758220368789,0.0132,117850.0,117830.0,2.15610177]
[1758220368992,0.45591237,117850.0,117840.0,0.41992237]
[1758220369190,0.45581237,117850.0,117840.0,1.25992237]
[1758220369996,0.03589,117850.0,117840.0,1.25992237]
[1758220370292,0.45681237,117850.0,117840.0,1.25992237]
[1758220371394,0.45781237,117850.0,117840.0,1.25992237]
[1758220375396,0.03789,117850.0,117840.0,1.25992237]
[1758220375597,0.45781237,117850.0,117840.0,1.25992237]
[1758220382493,0.45781237,117850.0,117840.0,1.76465694]
[1758220382698,0.45781237,117850.0,117840.0,1.67984474]
[1758220383401,0.03789,117850.0,117840.0,1.67984474]
[1758220383705,0.45781237,117850.0,117840.0,1.67984474]
[1758220384606,0.45781237,117850.0,117840.0,2.03136237]
[1758220384905,0.45781237,117850.0,117840.0,1.25992237]
[1758220385110,0.45781237,117850.0,117840.0,2.03140237]
[1758220385311,0.45781237,117850.0,117840.0,1.25992237]
[1758220385506,0.45781237,117850.0,117840.0,0.84]
[1758220385811,0.31789931,117850.0,117840.0,0.84]
[1758220396122,0.56789931,117850.0,117840.0,0.84]
[1758220396522,1.33933931,117850.0,117840.0,0.84]
[1758220397623,0.03789,117850.0,117840.0,1.12000931]
[1758220397924,0.31789931,117850.0,117840.0,1.12000931]
[1758220398116,0.03789,117850.0,117840.0,1.12000931]
[1758220398319,0.03789,117850.0,117840.0,1.48482932]
[1758220398519,0.03789,117850.0,117840.0,1.40001862]
[1758220398822,0.03789,117850.0,117840.0,1.12000931]
[1758220399125,0.03789,117850.0,117840.0,1.40001862]
[1758220399319,0.03789,117850.0,117840.0,1.12000931]
[1758220402222,0.31789931,117850.0,117840.0,1.12000931]
[1758220402430,0.31789931,117850.0,117840.0,1.89144931]
[1758220402729,0.31789931,117850.0,117840.0,1.61144]
[1758220402929,0.31789931,117850.0,117840.0,1.89144931]
[1758220403128,0.31789931,117850.0,117840.0,1.12000931]
[1758220403428,0.31789931,117850.0,117840.0,0.84]
[1758220403628,0.31789931,117850.0,117840.0,1.61144]
[1758220404128,0.31789931,117850.0,117840.0,0.84]
[1758220405531,0.03789,117850.0,117840.0,0.84]
[1758220405828,0.31789931,117850.0,117840.0,0.84]
[1758220407035,0.03789,117850.0,117840.0,0.84]
[1758220407330,0.31789931,117850.0,117840.0,0.84]
[1758220408636,0.56789931,117850.0,117840.0,0.84]
[1758220408930,1.34033931,117850.0,117840.0,0.84]
[1758220409130,0.56789931,117850.0,117840.0,0.84]
[1758220409334,0.03789,117850.0,117840.0,1.12000931]
[1758220410132,0.31789931,117850.0,117840.0,1.12000931]
[1758220410326,0.31789931,117850.0,117840.0,0.84]
[1758220410524,0.31789931,117850.0,117840.0,1.12000931]
[1758220412229,0.31789931,117850.0,117840.0,0.84]
[1758220413938,0.0151,117850.0,117840.0,1.12000931]
[1758220414838,0.002,117850.0,117840.0,1.12000931]
[1758220415333,0.002,117850.0,117840.0,1.73482942]
[1758220415633,0.002,117850.0,117840.0,1.75498073]
[1758220417738,0.001,117850.0,117840.0,1.75498073]
[1758220418135,0.0132,117860.0,117840.0,1.75498073]
[1758220418435,0.03612,117860.0,117850.0,1.05240931]
[1758220418637,0.03602,117860.0,117850.0,1.93240931]
[1758220419134,0.03702,117860.0,117850.0,1.16000931]
[1758220419329,0.03802,117860.0,117850.0,1.93224931]
[1758220419535,0.31802931,117860.0,117850.0,1.93224931]
[1758220419837,0.03802,117860.0,117850.0,1.93224931]
[1758220420437,0.31802931,117860.0,117850.0,1.93224931]
[1758220421034,0.31802931,117860.0,117850.0,1.93220931]
[1758220422236,0.31802931,117860.0,117850.0,1.16000931]
[1758220422436,0.31802931,117860.0,117850.0,1.93224931]
[1758220422738,0.31802931,117860.0,117850.0,1.16000931]
[1758220422935,0.31802931,117860.0,117850.0,1.93216931]
[1758220423139,0.31802931,117860.0,117850.0,1.16000931]
[1758220423336,0.31802931,117860.0,117850.0,1.93212931]
[1758220425032,0.03802,117860.0,117850.0,1.93212931]
[1758220425940,0.0151,117860.0,117850.0,1.93212931]
[1758220426139,0.002,117860.0,117850.0,1.93212931]
[1758220426737,0.002,117860.0,117850.0,1.16000931]
[1758220427240,0.002,117860.0,117850.0,2.01685431]
[1758220429544,0.002,117860.0,117850.0,2.54686362]
[1758220431146,0.001,117860.0,117850.0,2.54686362]
[1758220431441,0.0001,117870.0,117860.0,0.0847978]
[1758220431741,0.03612,117880.0,117860.0,2.26677642]
[1758220431945,0.03612,117880.0,117870.0,0.28000931]
[1758220432141,0.03602,117880.0,117870.0,1.11000931]
[1758220433044,0.03702,117880.0,117870.0,1.11000931]
[1758220433242,0.0141,117880.0,117870.0,1.12022062]
[1758220433543,0.0151,117880.0,117870.0,1.12022062]
[1758220434742,0.0151,117880.0,117870.0,1.89246062]
[1758220436847,0.0151,117880.0,117870.0,1.12022062]
[1758220437146,0.0151,117880.0,117870.0,1.89226062]
[1758220437646,0.0151,117880.0,117870.0,1.89222062]
[1758220438346,0.0151,117880.0,117870.0,1.12022062]
[1758220438546,0.0151,117880.0,117870.0,1.89214062]
[1758220438746,0.0151,117880.0,117870.0,1.12022062]
[1758220438954,0.0151,117880.0,117870.0,1.89214062]
[1758220439447,0.0151,117880.0,117870.0,1.12022062]
[1758220439649,0.0151,117880.0,117870.0,1.11000931]
[1758220439849,0.31661931,117880.0,117870.0,0.83]
[1758220441749,0.84662862,117880.0,117870.0,0.83]
[1758220445449,1.61954862,117880.0,117870.0,0.83]
[1758220445750,1.89955793,117880.0,117870.0,0.83]
[1758220445945,0.01349,117850.0,117840.0,0.02015131]
[1758220446150,0.31498931,117850.0,117840.0,0.95015131]
[1758220446653,0.31498931,117850.0,117840.0,0.93]
[1758220447247,0.31498931,117850.0,117840.0,0.932]
[1758220447954,0.45504257,117850.0,117840.0,0.932]
[1758220450653,0.03498,117850.0,117840.0,0.932]
[1758220450957,0.45504257,117850.0,117840.0,0.932]
[1758220455262,1.22820257,117850.0,117840.0,0.932]
[1758220455455,1.64818514,117850.0,117840.0,0.932]
[1758220456563,0.45504257,117850.0,117840.0,0.932]
[1758220456763,1.23778173,117850.0,117840.0,0.932]
[1758220458164,0.45504257,117850.0,117840.0,0.932]
[1758220458360,1.22812257,117850.0,117840.0,0.932]
[1758220458560,0.45504257,117850.0,117840.0,0.932]
[1758220458760,1.22796257,117850.0,117840.0,0.932]
[1758220458962,0.45504257,117850.0,117840.0,0.932]
[1758220459263,1.22796257,117850.0,117840.0,0.932]
[1758220459665,0.8079,117850.0,117840.0,0.932]
[1758220459866,1.22796257,117850.0,117840.0,0.932]
[1758220460257,1.22808257,117850.0,117840.0,0.932]
[1758220460566,1.22804257,117850.0,117840.0,0.932]
[1758220460866,0.80802,117850.0,117840.0,0.932]
[1758220461065,1.22808257,117850.0,117840.0,0.932]
[1758220462568,0.45508257,117850.0,117840.0,0.932]
[1758220462766,1.22808257,117850.0,117840.0,0.932]
[1758220463166,0.45508257,117850.0,117840.0,0.932]
[1758220463366,1.22796257,117850.0,117840.0,0.932]
[1758220464769,0.45508257,117850.0,117840.0,0.932]
[1758220465069,1.22788257,117850.0,117840.0,1.35206257]
[1758220465466,0.45508257,117850.0,117840.0,1.35206257]
[1758220466268,1.22832257,117850.0,117840.0,1.35206257]
[1758220466469,0.45508257,117850.0,117840.0,1.35206257]
[1758220466667,1.22824257,117850.0,117840.0,1.35206257]
[1758220469069,0.45508257,117850.0,117840.0,1.35206257]
[1758220469267,1.22824257,117850.0,117840.0,1.35206257]
[1758220469568,1.22824257,117850.0,117840.0,0.42206257]
[1758220469870,1.22824257,117850.0,117840.0,0.002]
[1758220470073,1.22824257,117850.0,117840.0,0.42206257]
[1758220470767,0.03502,117850.0,117840.0,0.42206257]
[1758220471173,0.90644257,117850.0,117840.0,0.42206257]
[1758220471374,0.48638,117850.0,117840.0,0.42206257]
[1758220471671,0.90644257,117850.0,117840.0,0.42206257]
[1758220471873,1.22888257,117850.0,117840.0,0.42206257]
[1758220472575,1.22888257,117850.0,117840.0,0.002]
[1758220472872,1.22908257,117850.0,117840.0,0.97206257]
[1758220474773,0.45508257,117850.0,117840.0,0.97206257]
[1758220474977,1.22904257,117850.0,117840.0,0.97206257]
[1758220475177,0.80898,117850.0,117840.0,0.97206257]
[1758220475378,0.80882,117850.0,117840.0,1.64212514]
[1758220475578,1.22888257,117850.0,117840.0,1.64212514]
[1758220475768,1.22888257,117850.0,117840.0,1.22206257]
[1758220476178,1.22888257,117850.0,117840.0,0.802]
[1758220476378,0.03502,117850.0,117840.0,1.22206257]
[1758220476579,0.8089,117850.0,117840.0,1.72693624]
[1758220476980,0.01353,117850.0,117840.0,1.72693624]
[1758220477183,0.01353,117850.0,117840.0,2.50093624]
[1758220477984,0.01353,117850.0,117840.0,1.72693624]
[1758220478280,0.01353,117850.0,117840.0,1.99606257]
[1758220478481,0.43359257,117850.0,117840.0,1.99606257]
[1758220478670,0.43359257,117850.0,117840.0,1.22206257]
[1758220479179,0.43359257,117850.0,117840.0,1.64212514]
[1758220479381,0.43359257,117850.0,117840.0,1.39212514]
[1758220483581,0.01353,117850.0,117840.0,1.39212514]
[1758220483782,0.43359257,117850.0,117840.0,1.39312514]
[1758220490086,4e-05,117850.0,117840.0,1.47793624]
[1758220490596,4e-05,117850.0,117840.0,1.77793624]
[1758220493301,4e-05,117850.0,117840.0,2.55169624]
[1758220494600,4e-05,117850.0,117840.0,3.22175881]
[1758220495193,4e-05,117850.0,117840.0,3.22167881]
[1758220495498,4e-05,117850.0,117840.0,2.71680514]
[1758220495691,4e-05,117850.0,117840.0,2.80161624]
[1758220496301,4e-05,117850.0,117840.0,2.02793624]
[1758220497001,4e-05,117850.0,117840.0,2.80149624]
[1758220497602,4e-05,117850.0,117840.0,1.72793624]
[1758220497802,4e-05,117850.0,117840.0,2.50145624]
[1758220498302,4e-05,117850.0,117840.0,2.53145624]
[1758220498503,4e-05,117850.0,117840.0,1.72793624]
[1758220498701,4e-05,117850.0,117840.0,2.50133624]
[1758220498999,4e-05,117850.0,117840.0,2.56924522]
[1758220500204,4e-05,117850.0,117840.0,2.64924522]
[1758220500406,4e-05,117850.0,117840.0,2.80924522]
[1758220503412,4e-05,117850.0,117840.0,2.03584522]
[1758220503606,0.01386,117850.0,117840.0,2.80896522]
[1758220503801,0.01386,117850.0,117840.0,2.80900522]
[1758220504411,4e-05,117850.0,117840.0,2.80900522]
[1758220506408,4e-05,117850.0,117840.0,3.22906779]
[1758220508313,4e-05,117850.0,117840.0,2.80900522]
[1758220508816,4e-05,117850.0,117840.0,1.19572098]
[1758220509004,4e-05,117850.0,117840.0,2.03584612]
[1758220509208,4e-05,117850.0,117840.0,2.72383412]
[1758220509710,4e-05,117850.0,117840.0,1.88370898]
[1758220510014,4e-05,117850.0,117840.0,2.443547]
[1758220510315,4e-05,117850.0,117840.0,2.528359]
[1758220511215,4e-05,117850.0,117840.0,1.755559]
[1758220511415,4e-05,117850.0,117840.0,2.443467]
[1758220518822,0.01386,117850.0,117840.0,1.88310898]
[1758220519123,0.01386,117850.0,117840.0,1.952947]
[1758220519322,0.01386,117850.0,117840.0,1.180747]
[1758220519624,0.01386,117850.0,117840.0,1.67298799]
[1758220522621,0.03631,117850.0,117840.0,1.67294799]
[1758220523026,0.03631,117850.0,117840.0,1.60503901]
[1758220524531,0.31622901,117850.0,117840.0,1.05491901]
[1758220525029,0.03631,117850.0,117840.0,1.05491901]
[1758220525429,0.03631,117850.0,117840.0,1.61491901]
[1758220525828,0.03631,117850.0,117840.0,1.61483901]
[1758220526029,0.01386,117850.0,117840.0,1.61483901]
[1758220533929,0.01386,117850.0,117840.0,1.33492]
[1758220534136,0.01386,117850.0,117840.0,1.61483901]
[1758220534429,0.29377901,117850.0,117840.0,1.61483901]
[1758220534733,0.01386,117850.0,117840.0,1.61483901]
[1758220535039,0.29377901,117850.0,117840.0,1.61483901]
[1758220536140,0.01386,117850.0,117840.0,1.61483901]
[1758220537031,0.01386,117850.0,117840.0,0.84291901]
[1758220537239,0.03538,117850.0,117840.0,1.61479901]
[1758220537740,0.03538,117850.0,117840.0,0.84291901]
[1758220538240,0.03538,117850.0,117840.0,1.61479901]
[1758220539743,0.31529901,117850.0,117840.0,1.61479901]
[1758220540139,0.03538,117850.0,117840.0,1.61479901]
[1758220542833,0.03538,117850.0,117840.0,0.84291901]
[1758220543033,0.03538,117850.0,117840.0,1.61479901]
[1758220543642,0.31529901,117850.0,117840.0,0.77488]
[1758220544934,0.56529901,117850.0,117840.0,0.003]
[1758220546037,0.57479814,117850.0,117840.0,0.002]
[1758220546242,0.56529901,117850.0,117840.0,0.001]
[1758220546743,0.57503376,117850.0,117840.0,0.001]
[1758220547443,0.56529901,117850.0,117840.0,0.001]
[1758220548144,0.57497748,117850.0,117840.0,0.001]
[1758220549242,0.85489649,117850.0,117840.0,0.001]
[1758220549641,0.57497748,117850.0,117840.0,0.001]
[1758220550444,0.57597748,117850.0,117840.0,0.001]
[1758220550649,0.29605847,117850.0,117840.0,0.001]
[1758220550942,0.56729901,117850.0,117840.0,0.001]
[1758220551736,0.57664933,117850.0,117840.0,0.001]
[1758220552941,0.56729901,117850.0,117840.0,0.001]
[1758220553841,0.28738,117850.0,117840.0,0.001]
[1758220554040,0.03738,117850.0,117840.0,1.11083802]
[1758220554444,0.01586,117850.0,117840.0,1.11083802]
[1758220559541,0.03774,117850.0,117840.0,0.56083802]
[1758220560045,0.03774,117850.0,117840.0,0.28091901]
[1758220561852,0.03774,117850.0,117840.0,0.79091901]
[1758220562153,0.03774,117850.0,117840.0,0.82091901]
[1758220562448,0.03774,117850.0,117840.0,1.10083802]
[1758220562846,0.01586,117850.0,117840.0,1.07083802]
[1758220563053,0.00204,117850.0,117840.0,1.22083802]